Cogmind - Beta 11 X2 --- EXPLORER MODE // 2021.02.10 @ 16:47:01 Player: Luigi Panache Result: Destroyed by as-11046 with Assembled Focal Cannon Performance ------------- Evolutions (3) 1500 Regions Visited (11) 2200 Robots Destroyed (174) 870 Value Destroyed (4699) 4699 Prototype IDs (31) 620 Alien Tech Used (0) 0 Bonus (1149) 1149 TOTAL SCORE: 11038 Bonus ------- High Alert Combat Kills 214 Entered Garrisons 200 Used RIF Installer 500 Aligned with FarCom 300 Friendly Fire -65 Cogmind --------- Core Integrity 0/700 Matter 40/300 Energy 100/100 System Corruption 14% Temperature Cool (6) Movement Core (1450) Ox28 Location -7/Deep Caves Parts ------- > --- POWER (1) -------- (None) > --- PROPULSION (4) --- (None) > --- UTILITY (7) ------ Huge Storage Unit Makeshift Sensor Array > --- WEAPON (2) ------- (None) > --- INVENTORY (25) --- F-cell Engine Armored Treads Medium Treads Spiked Medium Treads Spiked Medium Treads Improved Titanium Leg Improved Titanium Leg High-capacity Matter Pod (0) Kinecellerator Makeshift Hacking Suite Makeshift Hacking Suite Makeshift System Shield Makeshift System Shield Relay Coupler [NC] (42) Relay Coupler [ARC] (13) Relay Coupler [Grunt] (46) Assault Rifle Autogun Barrage Gun Heavy Battle Rifle Makeshift Shrapnel Gun Improved Datajack Peak State ------------ > --- POWER ------------ Reinforced Fission Core > --- PROPULSION ------- Improved Titanium Leg Improved Titanium Leg Improved Titanium Leg Advanced Myomer Leg > --- UTILITY ---------- Coolant Injector Huge Storage Unit Advanced Visual Processing Unit Kinecellerator Advanced Weapon Cycler Improved Weapon Shielding Relay Coupler [NC] > --- WEAPON ----------- 8R-AWN's Boregun Advanced EMP Blaster > --- INVENTORY -------- Light Ion Engine Aluminum Leg Carbon-fiber Leg Improved Titanium Leg Improved Titanium Leg Flying Fortress v7 High-capacity Matter Pod Layered Light Armor Plating Relay Coupler [NC] Relay Coupler [ARC] Relay Coupler [Grunt] Relay Coupler [Brawler] AS-neutralizer No. 17b Beam Rifle Beam Rifle Beam Rifle Beam Rifle Precision Beam Rifle Light Assault Rifle Light Assault Rifle Shock Bomb Launcher Improved Datajack [Rating: 72] Favorites ----------- Power Reinforced Fission Core Engine Ion Engine Power Core Reinforced Fission Core Reactor Zionite Light DM Reactor Propulsion Light Treads Treads Light Treads Leg Improved Titanium Leg Utility Huge Storage Unit Device Kinecellerator Storage Huge Storage Unit Processor Advanced Visual Processing Unit Hackware Relay Coupler [NC] Protection Heavy Armor Plating Weapon Light Assault Rifle Energy Gun Beam Rifle Ballistic Gun Light Assault Rifle Launcher Advanced EMP Blaster Impact Weapon Makeshift Hammer Special Melee Weapon Improved Datajack Build | -11 -10 -10 -10 -9 -8 -8 -7 -7 -7 -7 -7 ------- Run | Scr Mat Min Exi Min Mat Gar Fac Low Low Zio Dee Slots Evolved 7 | . 1 . . . 4 . 2 . . . . Power . | . . . . . . . . . . . . Propulsion 2 | . . . . . 2 . . . . . . Utility 5 | . 1 . . . 2 . 2 . . . . Weapon . | . . . . . . . . . . . . Parts Attached 116 | . 6 . 17 1 4 7 19 . 8 43 11 Power 10 | . 1 . 1 . . . . . 2 4 2 Engine 5 | . 1 . . . . . . . 2 2 . Core 4 | . . . 1 . . . . . . 2 1 Reactor 1 | . . . . . . . . . . . 1 Propulsion 31 | . 2 . 4 . 1 3 8 . . 12 1 Treads 22 | . 2 . 2 . . . 5 . . 12 1 Leg 9 | . . . 2 . 1 3 3 . . . . Wheel . | . . . . . . . . . . . . Hover . | . . . . . . . . . . . . Flight . | . . . . . . . . . . . . Utility 41 | . 3 . 6 . 2 2 5 . 2 16 5 Device 17 | . 1 . 3 . 1 . 2 . 1 7 2 Storage 2 | . 1 . . . . . . . . 1 . Processor 2 | . . . 1 . . 1 . . . . . Hackware 4 | . . . . . . 1 . . 1 2 . Protection 16 | . 1 . 2 . 1 . 3 . . 6 3 Artifact . | . . . . . . . . . . . . Weapon 34 | . . . 6 1 1 2 6 . 4 11 3 Energy Gun 9 | . . . 3 . 1 . 2 . 2 . 1 Energy Cannon . | . . . . . . . . . . . . Ballistic Gun 15 | . . . 3 1 . 2 2 . . 6 1 Ballistic Cannon . | . . . . . . . . . . . . Launcher 4 | . . . . . . . 1 . 1 2 . Special Weapon . | . . . . . . . . . . . . Impact Weapon 4 | . . . . . . . . . . 3 1 Slashing Weapon . | . . . . . . . . . . . . Piercing Weapon . | . . . . . . . . . . . . Special Melee Weapon 2 | . . . . . . . 1 . 1 . . Unidentified Prototypes 8 | . . . 4 . . . 1 . . 1 2 Parts Lost 40 | . . . 10 . . 1 3 . 2 12 12 Power 2 | . . . 1 . . . . . . . 1 Propulsion 10 | . . . 2 . . . . . . 3 5 Utility 15 | . . . 2 . . 1 1 . 1 6 4 Weapon 13 | . . . 5 . . . 2 . 1 3 2 Highest Loss Streak 11 | . . . 10 . . 1 1 . 2 4 11 Average Slot Usage (%) 93 | . 97 100 98 93 88 91 94 92 90 93 89 Engine 3 | . 12 12 9 . . . . . 6 2 . Core 5 | . . . 2 12 8 8 7 7 . 4 6 Treads 19 | . 23 25 21 . . . 11 28 28 27 27 Leg 7 | . 1 . 3 25 24 30 16 . . . . Device 14 | . 9 12 10 12 14 9 16 14 8 15 22 Storage 8 | . 12 12 12 12 8 8 7 7 7 6 7 Processor 4 | . . . 2 12 8 8 7 7 7 4 . Hackware 4 | . . . . . . . 7 7 12 6 . Protection 8 | . 12 12 10 . 7 8 7 7 6 9 11 Energy Gun 2 | . . . 3 12 8 1 2 7 13 . 1 Ballistic Gun 12 | . 25 25 21 5 8 14 11 7 . 8 10 Naked Turns 2 | . . . . . . . . . . 2 . Heaviest Build 132 | 19 92 92 110 105 113 113 130 130 112 132 122 Greatest Support 104 | 20 40 40 40 40 53 68 91 91 91 104 88 Greatest Overweight (x) 32 | . 2 2 2 2 2 2 6 1 1 2 32 Average Overweight (x) 1 | . . 2 2 2 1 1 1 1 1 . 1 Largest Inventory Capacity 25 | 10 25 25 25 25 25 25 25 25 25 25 25 Average Capacity 24 | 10 14 25 25 25 25 25 25 25 25 24 25 Most Carried 25 | 7 13 16 23 16 25 25 25 25 25 25 25 Average Carried 21 | 7 8 14 18 16 23 24 24 25 19 22 23 Final Capacity 25 | 10 25 25 25 25 25 25 25 25 25 25 25 Final Carried 25 | 7 13 16 15 16 25 25 25 25 20 25 22 Class Distribution -------------------- 40% | Scavenger-Mutant 33% | Bothacker-Mutant 26% | Hacker-Mutant Dominant Class ---------------- Hacker-Mutant | -10/Materials Hacker-Mutant | -10/Mines Hacker-Mutant | -10/Exiles Hacker-Mutant | -9/Mines Scavenger-Mutant | -8/Materials Scavenger-Mutant | -8/Garrison Bothacker-Mutant | -7/Factory Bothacker-Mutant | -7/Lower Caves Bothacker-Mutant | -7/Lower Caves Scavenger-Mutant | -7/Zion Scavenger-Mutant | -7/Deep Caves Resources | -11 -10 -10 -10 -9 -8 -8 -7 -7 -7 -7 -7 ----------- Run | Scr Mat Min Exi Min Mat Gar Fac Low Low Zio Dee Matter Collected 4191 | 196 332 16 420 10 62 293 981 30 124 1607 120 Remotely . | . . . . . . . . . . . . Salvage Created 6683 | . 189 26 159 42 271 628 2752 60 251 2185 120 Parts 381 | . 14 3 6 6 11 36 133 2 6 160 4 Haulers Intercepted 4 | . 1 . . . 1 . 2 . . . . Recyclers Shooed 2 | . . . . . . . 2 . . . . Parts Field Recycled . | . . . . . . . . . . . . Retrieved Matter . | . . . . . . . . . . . . Parts Self-Destructed . | . . . . . . . . . . . . Prevented . | . . . . . . . . . . . . Kills | -11 -10 -10 -10 -9 -8 -8 -7 -7 -7 -7 -7 ------- Run | Scr Mat Min Exi Min Mat Gar Fac Low Low Zio Dee Combat Hostiles Destroyed 84 | . 4 2 5 3 4 16 32 1 6 8 3 Melee 1 | . . . . . . 1 . . . . . Guns 74 | . 4 2 5 3 4 15 32 1 3 2 3 AOE 3 | . . . . . . . . . 2 1 . Classes Destroyed 19 | . 4 . 1 . 2 1 4 . . 5 2 Worker 6 | . . . . . . . 6 . . . . Builder 4 | . . . . . . . 4 . . . . Hauler 4 | . 1 . . . 1 . 2 . . . . Recycler 7 | . . . . . 1 . 6 . . . . Watcher 3 | . 2 . . . . . 1 . . . . Swarmer 18 | . 2 2 . 3 2 6 . . 3 . . Grunt 29 | . 2 . . . . 8 17 . 2 . . Brawler 2 | . . . . . . . 2 . . . . Sentry 9 | . . . . . 2 . 6 . 1 . . Hunter 5 | . . . . . . 2 2 1 . . . Programmer 5 | . . . . . . . 5 . . . . Zionite 70 | . . . . . . . . . . 70 . Z-Technician 5 | . . . . . . . . . . . 5 Z-Light 3 | . . . . . . . . . . . 3 Tinkerer 5 | . . . . . . . . . . 5 . Assembled 4 | . . . 4 . . . . . . . . Butcher 1 | . . . . . . . . . . 1 . Marauder 2 | . . . . . . . . . . 2 . Mutant 4 | . . . . . . . . . . 4 . Best Kill Streak 10 | . 2 2 3 3 3 7 9 1 3 10 5 Combat Bots Only 7 | . 2 2 3 3 2 7 6 1 3 2 3 Max Kills in Single Turn 5 | . 1 1 1 1 1 2 2 1 1 2 5 Gunslinging 1 | . . . . . . 1 . . . . . Exploded 1 | . . . . . . . . . 1 1 . Melee 1 | . . . . . . 1 . . . . . Uniques/NPCs Destroyed 2 | . . . 1 . . . . . . 1 . 8R-AWN (-10/Exiles) Imprinter (-7/Zion) Combat | -11 -10 -10 -10 -9 -8 -8 -7 -7 -7 -7 -7 -------- Run | Scr Mat Min Exi Min Mat Gar Fac Low Low Zio Dee Damage Taken 8155 | . 72 21 991 37 50 411 1569 72 447 2546 1939 Core 939 | . 6 5 122 5 . 82 104 7 23 133 452 Absorbed by Shields 144 | . . . . . 42 102 . . . . . Core Remaining (%) 76 | 100 . . . 44 . 85 . . . . . Volleys Fired 559 | . 19 4 73 3 22 42 127 5 31 209 24 Largest 2 | . 2 2 2 1 2 2 2 2 2 2 2 Hottest 112 | . 40 40 100 50 76 76 86 86 112 69 80 Shots Fired 942 | . 38 8 131 3 44 84 244 10 54 289 37 Gun 801 | . 38 8 131 3 44 84 243 10 48 155 37 Cannon . | . . . . . . . . . . . . Launcher 141 | . . . . . . . 1 . 6 134 . Special . | . . . . . . . . . . . . Kinetic 615 | . 38 8 98 . 22 73 186 5 4 155 26 Thermal 186 | . . . 33 3 22 11 57 5 44 . 11 Explosive . | . . . . . . . . . . . . Electromagnetic 141 | . . . . . . . 1 . 6 134 . Robot Hit Streak 41 | . 7 13 39 19 19 25 36 13 20 41 23 Robot Miss Streak 3 | . 2 . 2 . 1 1 3 . 2 3 3 Penetration Max 2 | . . . . . . 2 2 . . . . Secondary Targets 14 | . . 1 2 . . 6 . . 1 4 . Max Gunslinging Chain 1 | . . 1 1 . . 1 . . 1 1 . Shots Hit Robots 759 | . 28 7 110 3 36 64 214 10 46 209 32 Core Hits 308 | . 10 2 29 3 10 28 94 3 16 95 18 Critical Hits 86 | . . . . . 1 16 62 3 1 3 . Critical Kills 35 | . . . . . . 6 28 1 . . . Critical Parts Destroyed 46 | . . . . . 1 10 30 2 1 2 . Melee Attacks 95 | . . . . . . . 1 . 1 93 . Impact 93 | . . . . . . . . . . 93 . Slashing . | . . . . . . . . . . . . Piercing . | . . . . . . . . . . . . Sneak Attacks . | . . . . . . . . . . . . Combat Hostiles . | . . . . . . . . . . . . Follow-up Attacks . | . . . . . . . . . . . . Damage Inflicted 15695 | . 253 86 1144 38 384 769 3668 154 810 5824 2565 Guns 9642 | . 250 71 1144 38 375 751 3463 154 563 2388 445 Cannons . | . . . . . . . . . . . . Explosions 5858 | . . . . . . . 107 . 247 3384 2120 Melee 52 | . . . . . . . . . . 52 . Ramming 143 | . 3 15 . . 9 18 98 . . . . Kinetic 7327 | . 250 71 749 . 125 620 2672 80 53 2388 319 Thermal 4515 | . . . 395 38 250 131 791 74 510 80 2246 Explosive . | . . . . . . . . . . . . Electromagnetic 3658 | . . . . . . . 107 . 247 3304 . Impact 52 | . . . . . . . . . . 52 . Slashing . | . . . . . . . . . . . . Piercing . | . . . . . . . . . . . . Highest Corruption 14 | . . . . . . . 1 1 1 14 14 Average Corruption 5 | . . . . . . . 1 1 1 7 14 Corruption Purged . | . . . . . . . . . . . . Effects 180 | . . . . . . . 16 2 2 110 50 Message Errors 45 | . . . . . . . 7 1 2 27 8 Matter Fused 38 | . . . . . . . . . . 28 10 Heat Flow Errors 18 | . . . . . . . . . . 12 6 Energy Discharges 27 | . . . . . . . 5 1 . 14 7 Parts Rejected 2 | . . . . . . . . . . . 2 Data Loss (minor) 14 | . . . . . . . 2 . . 9 3 Data Loss (major) 8 | . . . . . . . . . . 5 3 Misfires 7 | . . . . . . . . . . 3 4 Alerts 2 | . . . . . . . . . . 2 . Misdirections 9 | . . . . . . . . . . 4 5 Weapon Failures 10 | . . . . . . . 2 . . 6 2 Overload Shots . | . . . . . . . . . . . . Overflow Damage 653 | . . . . . . . 6 . 3 91 553 Projectiles . | . . . . . . . . . . . . Explosions 647 | . . . . . . . . . 3 91 553 Melee 6 | . . . . . . . 6 . . . . Knockbacks 2 | . . . . . . . . . . 2 . Impact 2 | . . . . . . . . . . 2 . Kinetic . | . . . . . . . . . . . . Secondary . | . . . . . . . . . . . . Self-Inflicted Damage 682 | . . . . . . . 25 . . 430 227 Shots 31 | . . . . . . . 2 . . 28 1 Rammed 7 | . 2 1 . . . . 4 . . . . Targets Rammed 13 | . 2 1 . . 2 1 7 . . . . Kicked 6 | . . . . . 2 1 3 . . . . Crushed . | . . . . . . . . . . . . Highest Temperature 366 | . 12 12 366 98 266 333 198 196 194 254 234 Average Temperature 89 | . 5 6 94 55 110 108 84 92 93 98 104 Received Heat Transfer 1995 | . 18 . . . 24 231 741 . 270 201 510 Effects 3 | . . . 2 . . 1 . . . . . Shutdowns 1 | . . . . . . 1 . . . . . Energy Bleed 2 | . . . 2 . . . . . . . . Siege Activations . | . . . . . . . . . . . . Robots Corrupted 10 | . . . . . . . . . 1 9 . Combat Hostiles 6 | . . . . . . . . . 1 5 . Parts Fried 24 | . . . . . . . 1 . 3 20 . Impact Corruptions 3 | . . . . . . . 3 . . . . Robots Melted . | . . . . . . . . . . . . Combat Hostiles . | . . . . . . . . . . . . Parts Melted 11 | . . . . . 2 1 4 . 3 1 . Heat Transferred 5415 | . . . 344 111 629 333 1961 185 1295 150 407 Parts Sabotaged . | . . . . . . . . . . . . Parts Stolen 3 | . . . . . . . . . 3 . . Parts Stripped . | . . . . . . . . . . . . Power Chain Reactions 18 | . . . . . . . . . . 18 . Missiles Intercepted . | . . . . . . . . . . . . Alert | -11 -10 -10 -10 -9 -8 -8 -7 -7 -7 -7 -7 ------- Run | Scr Mat Min Exi Min Mat Gar Fac Low Low Zio Dee Peak Influence 712 | . 173 53 . 70 156 561 712 . . . . Initial 218 | . . 3 . . 19 76 218 . . . . Average 203 | . 46 17 . 37 97 348 244 . . . . Maximum Alert Level 3 | . . . . . . 2 3 . . . . Low Security (%) 55 | 100 100 100 . 100 100 22 40 . . . . Level 1 23 | . . . . . . 30 34 . . . . Level 2 18 | . . . . . . 46 20 . . . . Level 3 2 | . . . . . . . 4 . . . . Level 4 . | . . . . . . . . . . . . Level 5 . | . . . . . . . . . . . . High Security . | . . . . . . . . . . . . Max Security . | . . . . . . . . . . . . Squads Dispatched 11 | . . . . . . . 11 . . . . Investigation 2 | . . . . . . . 2 . . . . Extermination 5 | . . . . . . . 5 . . . . Reinforcement 3 | . . . . . . . 3 . . . . Assault . | . . . . . . . . . . . . Garrison 1 | . . . . . . . 1 . . . . Intercept . | . . . . . . . . . . . . Construction Impeded 1 | . . . . . . . 1 . . . . Haulers Reinforced 2 | . . . . . . . 2 . . . . Stealth | -11 -10 -10 -10 -9 -8 -8 -7 -7 -7 -7 -7 --------- Run | Scr Mat Min Exi Min Mat Gar Fac Low Low Zio Dee Distress Signals 5 | . . . . . 2 . 3 . . . . Communications Jammed . | . . . . . . . . . . . . Distress Signals . | . . . . . . . . . . . . Times Spotted 234 | . 8 2 9 3 12 22 51 1 12 110 4 Peak Tracking Total 9 | . 2 2 9 3 5 8 7 1 3 5 3 Tactical Retreats 39 | . 1 . . . . 2 2 . . 34 . Traps | -11 -10 -10 -10 -9 -8 -8 -7 -7 -7 -7 -7 ------- Run | Scr Mat Min Exi Min Mat Gar Fac Low Low Zio Dee Traps Triggered 8 | . . . . . . 4 4 . . . . Indirectly 2 | . . . . . . . 2 . . . . Trap Hack Attempts . | . . . . . . . . . . . . Triggered . | . . . . . . . . . . . . Disarmed . | . . . . . . . . . . . . Reprogrammed 6 | . 6 . . . . . . . . . . Reused 2 | . 2 . . . . . . . . . . Traps Extracted . | . . . . . . . . . . . . Installed . | . . . . . . . . . . . . Triggered 2 | . 2 . . . . . . . . . . Machines | -11 -10 -10 -10 -9 -8 -8 -7 -7 -7 -7 -7 ---------- Run | Scr Mat Min Exi Min Mat Gar Fac Low Low Zio Dee Machines Disabled 25 | . . . 3 . . 2 15 . . 3 2 Max in Single Turn 4 | . . . 1 . . 1 4 . . 1 2 Garrison Access 1 | . . . . . . . 1 . . . . Garrison Relay 2 | . . . . . . 2 . . . . . Machines Sabotaged . | . . . . . . . . . . . . Garrisons Compromised . | . . . . . . . . . . . . Overloaded Fab Kills . | . . . . . . . . . . . . Fab Network Shutdowns 1 | . . . . . . . 1 . . . . Hacking | -11 -10 -10 -10 -9 -8 -8 -7 -7 -7 -7 -7 --------- Run | Scr Mat Min Exi Min Mat Gar Fac Low Low Zio Dee Machines Accessed 15 | . 6 . 2 . 1 . 6 . . . . Terminals 8 | . 4 . . . . . 4 . . . . Fabricators 1 | . . . . . . . 1 . . . . Repair Stations . | . . . . . . . . . . . . Recycling Units 2 | . 2 . . . . . . . . . . Scanalyzers . | . . . . . . . . . . . . Garrison Access 2 | . . . . . 1 . 1 . . . . Total Hacks 40 | . 19 . 2 . 1 . 18 . . . . Successful 27 | . 13 . 2 . 1 . 11 . . . . Failed 13 | . 6 . . . . . 7 . . . . Catastrophic . | . . . . . . . . . . . . Database Lockouts . | . . . . . . . . . . . . Manual 20 | . 11 . 1 . . . 8 . . . . Terminals 28 | . 14 . . . . . 14 . . . . Fabricators 3 | . . . . . . . 3 . . . . Repair Stations . | . . . . . . . . . . . . Recycling Units 5 | . 5 . . . . . . . . . . Scanalyzers . | . . . . . . . . . . . . Garrison Access 2 | . . . . . 1 . 1 . . . . Terminal Hacks 15 | . 7 . 2 . . . 6 . . . . Record 1 | . . . 1 . . . . . . . . Part Schematic 4 | . 2 . . . . . 2 . . . . Branch Access Points 2 | . 1 . . . . . 1 . . . . Terminal Index 1 | . . . . . . . 1 . . . . Unreport Threat 1 | . . . . . . . 1 . . . . Locate Traps 1 | . 1 . . . . . . . . . . Reprogram Traps 1 | . 1 . . . . . . . . . . Recall Extermination 1 | . . . . . . . 1 . . . . Hauler Manifests 1 | . 1 . . . . . . . . . . Zone Layout 1 | . 1 . . . . . . . . . . EX-Prototype ID Bank 1 | . . . 1 . . . . . . . . Fabricator Hacks 3 | . . . . . . . 3 . . . . Load Schematic 1 | . . . . . . . 1 . . . . Build 2 | . . . . . . . 2 . . . . Repair Station Hacks . | . . . . . . . . . . . . Recycling Unit Hacks 3 | . 3 . . . . . . . . . . Retrieve Matter 1 | . 1 . . . . . . . . . . Retrieve Components 2 | . 2 . . . . . . . . . . Scanalyzer . | . . . . . . . . . . . . Garrison Access Hacks 2 | . . . . . 1 . 1 . . . . Unlock Access 1 | . . . . . 1 . . . . . . Seal Access 1 | . . . . . . . 1 . . . . Unauthorized Hacks 4 | . 3 . . . . . 1 . . . . Terminals 4 | . 3 . . . . . 1 . . . . Track 1 | . 1 . . . . . . . . . . Assimilate 1 | . . . . . . . 1 . . . . Botnet 2 | . 2 . . . . . . . . . . Fabricators . | . . . . . . . . . . . . Repair Stations . | . . . . . . . . . . . . Recycling Units . | . . . . . . . . . . . . Scanalyzers . | . . . . . . . . . . . . Garrison Access . | . . . . . . . . . . . . Data Cores Recovered . | . . . . . . . . . . . . Used . | . . . . . . . . . . . . Hacking Detections 10 | . 5 . . . . . 5 . . . . Full Trace Events 3 | . 1 . . . . . 2 . . . . Feedback Events . | . . . . . . . . . . . . Feedback Blocked . | . . . . . . . . . . . . Robot Schematics Acquired . | . . . . . . . . . . . . Robots Built . | . . . . . . . . . . . . Matter . | . . . . . . . . . . . . Time . | . . . . . . . . . . . . Total Robot Build Rating . | . . . . . . . . . . . . Part Schematics Acquired 4 | . 2 . . . . . 2 . . . . Parts Built 4 | . . . . . . . 4 . . . . Matter 336 | . . . . . . . 336 . . . . Time 84 | . . . . . . . 84 . . . . Total Part Build Rating 16 | . . . . . . . 16 . . . . Parts Repaired . | . . . . . . . . . . . . Time . | . . . . . . . . . . . . Parts Recycled . | . . . . . . . . . . . . Recycled Matter . | . . . . . . . . . . . . Retrieved Matter . | . . . . . . . . . . . . Retrieved Components 3 | . 3 . . . . . . . . . . Parts Scanalyzed . | . . . . . . . . . . . . Part Schematics Acquired . | . . . . . . . . . . . . Parts Damaged . | . . . . . . . . . . . . Bothacking | -11 -10 -10 -10 -9 -8 -8 -7 -7 -7 -7 -7 ------------ Run | Scr Mat Min Exi Min Mat Gar Fac Low Low Zio Dee Used RIF Installer 1 | . . . . . . 1 . . . . . Robots Hacked 2 | . . . . . . . 1 . 1 . . Non-combat 1 | . . . . . . . 1 . . . . Combat 1 | . . . . . . . . . 1 . . Robot Hacks Applied 2 | . . . . . . . 1 . 1 . . map_route 1 | . . . . . . . 1 . . . . formatsys_high 1 | . . . . . . . . . 1 . . Relay Couplers Released 8 | . . . . . . 8 . . . . . Machine Destruction 8 | . . . . . . 8 . . . . . Attached 2 | . . . . . . 1 . . 1 . . Robots Rewired . | . . . . . . . . . . . . Allies Hacked . | . . . . . . . . . . . . Hacks Repelled . | . . . . . . . . . . . . Allies | -11 -10 -10 -10 -9 -8 -8 -7 -7 -7 -7 -7 -------- Run | Scr Mat Min Exi Min Mat Gar Fac Low Low Zio Dee Total Allies 5 | . . 3 . . . . 1 . 1 . . Largest Group 3 | . . 3 3 . . . 1 . 1 1 . Highest-Rated Group 40 | . . 40 40 . . . 10 . 20 20 . Highest-Rated Ally 20 | . . 16 16 . . . 10 . 20 20 . Total Orders . | . . . . . . . . . . . . Ally Attacks 17 | . . . 4 . . . . . 7 6 . Total Damage 234 | . . . 28 . . . . . 82 124 . Kills . | . . . . . . . . . . . . Allies Corrupted . | . . . . . . . . . . . . Allies Melted . | . . . . . . . . . . . . Intel | -11 -10 -10 -10 -9 -8 -8 -7 -7 -7 -7 -7 ------- Run | Scr Mat Min Exi Min Mat Gar Fac Low Low Zio Dee Robot Analysis Total . | . . . . . . . . . . . . Derelict Logs Recovered 2 | . . . . . . . . . 1 1 . Drone Launches . | . . . . . . . . . . . . Drone Recoveries . | . . . . . . . . . . . . Exploration | -11 -10 -10 -10 -9 -8 -8 -7 -7 -7 -7 -7 ------------- Run | Scr Mat Min Exi Min Mat Gar Fac Low Low Zio Dee Turns Passed 12976 | 3 583 526 1477 155 310 935 2812 658 597 3672 1248 Spaces Moved 4027 | 3 255 142 359 54 81 363 883 246 176 1045 420 Core 32 | . . . . . . . . . . 30 2 Treads 2909 | . 229 142 282 . . . 401 246 176 1015 418 Legs 1086 | 3 26 . 77 54 81 363 482 . . . . Wheels . | . . . . . . . . . . . . Hover . | . . . . . . . . . . . . Flight . | . . . . . . . . . . . . Fastest Speed 50 | 120 120 360 280 280 200 200 200 260 260 50 270 Average Speed 266 | 120 190 360 342 280 276 217 261 260 260 264 277 Slowest Speed 1650 | 120 360 360 360 280 280 280 760 260 260 360 1650 Overloaded Moves . | . . . . . . . . . . . . Propulsion Burnouts . | . . . . . . . . . . . . Robots Hopped . | . . . . . . . . . . . . Cave-ins Triggered . | . . . . . . . . . . . . Exploration Rate (%) 39 | 3 35 37 69 16 9 56 23 41 41 79 69 Regions Visited 11 Branch Regions 7 Pre-discovered Areas 1 | . . . 1 . . . . . . . . Known Exits Taken 10 | 1 1 1 1 1 1 . 1 1 1 1 . Unknown Exits Taken . | . . . . . . . . . . . . Scrap Searched 1 | . . . . . . . . . 1 . . Spaces Dug 2 | . . . . . . . . . . 2 . Terrain Destroyed 81 | . . . . . . 9 48 . 1 12 11 Melee 2 | . . . . . . . . . . 2 . Projectile 23 | . . . . . . 9 12 . 1 1 . AOE 56 | . . . . . . . 36 . . 9 11 Terrain Rammed . | . . . . . . . . . . . . Walls Destroyed . | . . . . . . . . . . . . Machines Disabled . | . . . . . . . . . . . . Actions | -11 -10 -10 -10 -9 -8 -8 -7 -7 -7 -7 -7 --------- Run | Scr Mat Min Exi Min Mat Gar Fac Low Low Zio Dee Total 5362 | 2 314 149 487 58 139 468 1201 257 260 1559 468 Wait 390 | . 27 . 27 . 21 20 130 . 43 115 7 Move 4015 | 2 254 141 358 53 80 361 882 245 175 1044 420 Hop . | . . . . . . . . . . . . Pick Up 83 | . 5 3 5 . 9 7 12 1 1 39 1 Fast Attach 48 | . . . 7 1 3 2 10 . 1 20 4 Attach 30 | . 1 . 7 . . 1 2 . 3 11 5 Detach 7 | . . . 1 1 . 1 1 . . 2 1 Swap 38 | . 5 . 3 . 1 4 7 . 4 12 2 Drop 59 | . 1 . 6 . 1 9 22 1 1 14 4 Fire 559 | . 19 4 73 3 22 42 127 5 31 209 24 Melee 95 | . . . . . . . 1 . 1 93 . Ram . | . . . . . . . . . . . . Kick 6 | . . . . . 2 1 3 . . . . Crush 7 | . 2 1 . . . . 4 . . . . Escape Stasis 20 | . . . . . . 20 . . . . . Rewire 5 | . . . . . . . . 5 . . . Trap . | . . . . . . . . . . . . Miscellaneous . | . . . . . . . . . . . . Route ------- -11/Scrapyard -10/Materials (discovered 3 exits: Mat / *Min x2) -10/Mines -10/Exiles -9/Mines -8/Materials -8/Garrison (discovered 2 exits: *Fac x2) -7/Factory (discovered 5 exits: Fac / Sto x2 / *Low x2) -7/Lower Caves -7/Lower Caves (discovered 2 exits: Fac / *Zio) -7/Zion (discovered 2 exits: *Dee / *Pro) -7/Deep Caves (discovered 1 exit: *Pro) History --------- Turn | Location | Event 1 | -11/Scrapyard | Identified exit to Materials 1 | -11/Scrapyard | Discovered exit to Materials (range 3) 4 | -11/Scrapyard | Entered Materials 4 | -10/Materials | Evolved 1 slot: Utility x1 83 | -10/Materials | Identified exit to Mines 310 | -10/Materials | Build established: Hacker-Mutant 533 | -10/Materials | Identified exit to Materials 533 | -10/Materials | Discovered exit to Materials (range 19) 587 | -10/Materials | Entered Mines 933 | -10/Mines | Assisted by bots powering up and referring to "LRC-V3" 1095 | -10/Mines | Deemed a non-threat by the Exiles lab entrance 1098 | -10/Mines | Identified exit to Exiles 1098 | -10/Mines | Discovered exit to Exiles (range 5) 1113 | -10/Mines | Entered Exiles 1113 | -10/Exiles | Accompanied by 3 allies 1206 | -10/Exiles | Met 8R-AWN 1264 | -10/Exiles | Met EX-HEX 1422 | -10/Exiles | Met EX-DEC 1484 | -10/Exiles | Learned location of Zion (-7) 1545 | -10/Exiles | Met EX-BIN 1595 | -10/Exiles | Aligned with FarCom system 1599 | -10/Exiles | Given EX-Vault access code 1682 | -10/Exiles | Opened EX-Vault 1700 | -10/Exiles | Found Flying Fortress v7 1798 | -10/Exiles | Warned to stay clear of 0b10 Research branches 2061 | -10/Exiles | Attacked by the Exiles 2287 | -10/Exiles | Core integrity fell below 50% 2305 | -10/Exiles | Destroyed 8R-AWN 2326 | -10/Exiles | Lost 10 parts (1p2n2u5w) 2329 | -10/Exiles | Found Prototype Processor 2329 | -10/Exiles | Identified Exp. Targeting Computer 2349 | -10/Exiles | Found Prototype Ballistic Gun 2349 | -10/Exiles | Identified 8R-AWN's Boregun 2358 | -10/Exiles | Found Prototype Device 2358 | -10/Exiles | Identified AS-neutralizer No. 17b 2410 | -10/Exiles | Identified exit to Mines 2410 | -10/Exiles | Discovered exit to Mines (range 10) 2590 | -10/Exiles | Left Exiles lab with Flying Fortress v7 2590 | -10/Exiles | Entered Mines 2634 | -9/Mines | Met a Derelict bent on vengeance 2726 | -9/Mines | Identified exit to Materials 2726 | -9/Mines | Discovered exit to Materials (range 7) 2745 | -9/Mines | Entered Materials 2745 | -8/Materials | Evolved 4 slots: Propulsion x2, Utility x2 2981 | -8/Materials | Build established: Scavenger-Mutant 3052 | -8/Materials | Identified exit to Garrison 3055 | -8/Materials | Entered Garrison 3146 | -8/Garrison | Triggered checkpoint 3277 | -8/Garrison | Triggered checkpoint 3338 | -8/Garrison | Destroyed 7 combat bots 3447 | -8/Garrison | Identified exit to Factory 3447 | -8/Garrison | Discovered exit to Factory (range 15) 3491 | -8/Garrison | Installed Relay Interface Framework 3543 | -8/Garrison | Triggered checkpoint 3593 | -8/Garrison | Garrison Relay disabled 3753 | -8/Garrison | Discovered exit to Factory (range 8) 3820 | -8/Garrison | Triggered checkpoint 3884 | -8/Garrison | Garrison Relay disabled 3990 | -8/Garrison | Entered Factory 3990 | -7/Factory | Evolved 2 slots: Utility x2 4392 | -7/Factory | Build established: Bothacker-Mutant 4514 | -7/Factory | Fabricated Powered Armor (x2) 4564 | -7/Factory | Fabricated Powered Armor (x2) 4787 | -7/Factory | Local fabrication network quarantined 5220 | -7/Factory | Identified exit to Storage 5220 | -7/Factory | Identified exit to Lower Caves 5634 | -7/Factory | Identified exit to Factory 5634 | -7/Factory | Discovered exit to Factory (range 145) 6525 | -7/Factory | Garrison activated, responded to threat 6802 | -7/Factory | Entered Lower Caves 7426 | -7/Lower Caves | Identified exit to Lower Caves 7426 | -7/Lower Caves | Discovered exit to Lower Caves (range 13) 7460 | -7/Lower Caves | Entered another Lower Caves area 7460 | -7/Lower Caves | Spotted 8J-O3H(f) 7460 | -7/Lower Caves | Spotted SL-C9X(f) 7461 | -7/Lower Caves | Encountered a Master Thief 7461 | -7/Lower Caves | Encountered a Master Thief 7461 | -7/Lower Caves | Flying Fortress v7 stolen by Master Thief 7462 | -7/Lower Caves | Spotted CX-C6Z(f) 7463 | -7/Lower Caves | Encountered a Master Thief 7470 | -7/Lower Caves | 8R-AWN's Boregun stolen by Master Thief 7473 | -7/Lower Caves | Rnf. Fission Core stolen by Master Thief 7822 | -7/Lower Caves | Attracted the attention of an 0b10 checkpoint 7991 | -7/Lower Caves | Identified exit to Zion 7991 | -7/Lower Caves | Discovered exit to Zion (range 19) 8057 | -7/Lower Caves | Entered Zion 8057 | -7/Zion | Accompanied by 1 ally 8213 | -7/Zion | Identified exit to Proximity Caves 8213 | -7/Zion | Discovered exit to Proximity Caves (range 12) 8289 | -7/Zion | RIF detected upon attempting to enter Zion 8289 | -7/Zion | Attacked by Zionites 8290 | -7/Zion | Spotted 1Q-P14(B) 8290 | -7/Zion | Spotted AT-77H(B) 8338 | -7/Zion | Destroyed 1Q-P14(B) 8367 | -7/Zion | Lost 4 parts (2n2w) 8378 | -7/Zion | Destroyed AT-77H(B) 8863 | -7/Zion | Learned 8 Factory zone layouts 8909 | -7/Zion | Build established: Hacker-Mutant 9902 | -7/Zion | Build established: Scavenger-Mutant 10602 | -7/Zion | System corruption reached 10% 10690 | -7/Zion | Destroyed Imprinter 10704 | -7/Zion | Extracted access codes from Imprinter's data core 11489 | -7/Zion | Released all parts (13) 11504 | -7/Zion | Identified exit to Deep Caves 11504 | -7/Zion | Discovered exit to Deep Caves (range 4) 11729 | -7/Zion | Entered Deep Caves 11952 | -7/Deep Caves | Z-Facility disabled 12070 | -7/Deep Caves | Core integrity fell below 50% 12496 | -7/Deep Caves | Identified exit to Proximity Caves 12496 | -7/Deep Caves | Discovered exit to Proximity Caves (range 11) 12892 | -7/Deep Caves | Spotted as-11046 12960 | -7/Deep Caves | Core integrity fell below 20% 12977 | -7/Deep Caves | Destroyed by as-11046 with Assembled Focal Cannon Last Messages --------------- 12882_ System corrupted: Matter fused (-7). 12894_ as-11046: "DSI9AT1D G8OHIBQ29FWG 26R186 QD12WHW8W33 TDK1 81FTS" 12894_ Hvy. Armor Plating destroyed. 12919_ Mak. Shrapnel Gun destroyed. 12923_ Arm. Treads destroyed. 12928_ System corrupted: Energy discharge (-124). 12929_ Reflective Plating destroyed. 12932_ System corrupted: Beam Rifle failed to cycle. 12932_ Cooling System destroyed. 12934_ System corrupted: Beam Rifle failed to cycle. 12936_ Arm. Treads destroyed. 12938_ Destroyed Prototype Device. 12939_ as-11046 GOLEM Unit beginning Prototype Device integration. 12939_ Beam Rifle destroyed. 12940_ as-11046 Prototype Device integration complete. 12942_ Arm. Treads destroyed. 12946_ Fission Core destroyed. 12954_ System corrupted: Mak. Hammer rejected. 12970_ IFPPWUH|PGVKSJKDFNUOHI D 12971_ Exp. Heat Sink destroyed. Map ----- +----------------------------------------------------+ | ????????????????????????????????????## ##????? | | ?????????????????????????????????#### #????? | | ???????????????????????????????### #????? | | ??????????????????????????????## #?????? | | ??????????????????????????????# ##????? | | ??????????????????????????????# ###??? | | ????????????????????????? #??## ## ##?? | | ???????????????????????* ???## #### ##? | | ???????????????????? * ????###???## #? | | ?????????????????? * #??????????## ## | | ???????????????? #???????????## # | | ??????????????? ! #????????????# | | ????????????? ! [ #????????????# | | ??????????? ! #????????????# | | ??????????? ! M ##???????????## | | ?????????? [ #????????????#### | | ?????????? [ #???####????????## | | ????????? ! #??## ##???????## | | ????????? #### ##??##### | | ????????? #### | | ????????""" ! | | ????????" | | ?????????" ##### | | ????????" #???# | | ?????????" G ##??# ## | | ????????" #@# "#??# ### # | | ????????" #### ##/## ###??## #?##### | | ????????""" ???????# ?# ####?????#### ##?????? | | ???????????????????#??# #???????????#####??????? | | ??????????????????????###??????????????????????? | | | | | | | | | | | | | | | | | | | | | | | | | | | | | | | | | | | | | | | | | +----------------------------------------------------+ Best States ------------- Heat Dissipation 82 Coolant Potential 65 Energy Generation 19 Energy Capacity 500 Matter Stores 300 Matter Capacity 300 Sight Range 20 Robot Scan Range 19 Terrain Scan Density 10 Armor Coverage 1200 Resistance: KI 35 Resistance: TH 45 Resistance: EX 35 Resistance: EM 35 Resistance: I 35 Resistance: S 35 Resistance: P 35 Core Shielding 20 Weapon Shielding 66 Weapon Cycling 25 Evasion (%) 55 Targeting Accuracy 12 Recoil Reduction 4 Kinecelleration 30 Offensive Hacking 31 Defensive Hacking 11 Relay Coupler Types 68 Relay Coupler Value 2 Item Schematics ----------------- Hcp. Storage Unit | -10/Materials | Hacked Med. Storage Unit | -10/Materials | Hacked Powered Armor | -7/Factory | Hacked Hyp. Gauss Cannon | -7/Factory | Hacked Robot Schematics ------------------ None Fabricated ------------ Powered Armor | x2 | -7/Factory Powered Armor | x2 | -7/Factory Alien Tech Used ----------------- None Achievements -------------- Monster Challenges ------------ None Game ------ Seed AlloyRelayPerforator Manual? 0 Play Time 01:12:10 Cumulative 274.1 hours Start 2021.02.10 @ 14:36:43 End 2021.02.10 @ 16:47:01 Sessions 1 Manual Loads 0 Difficulty Explorer Special Mode None Game No. 268 Rogue 122 Adventurer 68 Explorer 78 Win Type - Total 21 Types 15/0/4/2/0/0/0/0/0 Lore% 78 Gallery% 86 Achievement% 67 Wizard Run 0 Options --------- ASCII 0 Keyboard 0 Movement Numpad Keybinds 0 Fullscreen 2 Font 18/TerminusBold Map View 76x50 Tactical HUD 1 Map Filters NONE Filters NONE Steam 1 RUN: bb7eed3d-113b-4006-be3d-aae2c1e4ac9a